[Event "Masters Tournament (MTO)"]
[Site "Biel, Switzerland"]
[Date "2026.07.17"]
[Round "5.30"]
[White "Dauth, Benjamin"]
[Black "Di Candia, Roberto"]
[Result "1-0"]
[TimeControl "100+30+30sec/move"]
[WhiteTitle "-"]
[BlackTitle "-"]
[WhiteFideId "4688104"]
[BlackFideId "856649"]
[WhiteElo "2247"]
[BlackElo "1988"]

1. e4 {[%clk 01:40:52]} {[%emt 00:00:05]} e5 {[%clk 01:40:53]} {[%emt
00:00:08]} 2. Bc4 {[%clk 01:41:13]} {[%emt 00:00:10]} Nf6 {[%clk 01:41:15]}
{[%emt 00:00:08]} 3. d3 {[%clk 01:41:40]} {[%emt 00:00:04]} Nc6 {[%clk
01:41:36]} {[%emt 00:00:07]} 4. Nf3 {[%clk 01:42:07]} {[%emt 00:00:06]} Be7
{[%clk 01:41:34]} {[%emt 00:00:31]} 5. O-O {[%clk 01:42:23]} {[%emt 00:00:13]}
O-O {[%clk 01:41:58]} {[%emt 00:00:07]} 6. h3 {[%clk 01:42:42]} {[%emt
00:00:09]} d5 {[%clk 01:41:37]} {[%emt 00:00:52]} 7. exd5 {[%clk 01:42:59]}
{[%emt 00:00:14]} Nxd5 {[%clk 01:42:01]} {[%emt 00:00:06]} 8. Nc3 {[%clk
01:42:12]} {[%emt 00:01:17]} Nb6 {[%clk 01:32:42]} {[%emt 00:09:49]} 9. Bb5
{[%clk 01:42:34]} {[%emt 00:00:08]} Nd4 {[%clk 01:23:34]} {[%emt 00:09:38]} 10.
Nxe5 {[%clk 01:42:56]} {[%emt 00:00:07]} Nxb5 {[%clk 01:23:00]} {[%emt
00:01:04]} 11. Nxb5 {[%clk 01:43:21]} {[%emt 00:00:06]} Qd5 {[%clk 01:21:05]}
{[%emt 00:02:24]} 12. Nxc7 {[%clk 01:43:44]} {[%emt 00:00:07]} Qxe5 {[%clk
01:21:25]} {[%emt 00:00:10]} 13. Nxa8 {[%clk 01:44:09]} {[%emt 00:00:05]} Bd6
{[%clk 01:10:55]} {[%emt 00:11:00]} 14. f4 {[%clk 01:42:17]} {[%emt 00:02:22]}
Qd4+ {[%clk 01:11:19]} {[%emt 00:00:07]} 15. Kh1 {[%clk 01:42:38]} {[%emt
00:00:09]} Nxa8 {[%clk 01:11:21]} {[%emt 00:00:28]} 16. c3 {[%clk 01:41:41]}
{[%emt 00:01:26]} Qd5 {[%clk 01:09:17]} {[%emt 00:02:33]} 17. Qf3 {[%clk
01:41:05]} {[%emt 00:01:07]} Nc7 {[%clk 01:05:12]} {[%emt 00:04:36]} 18. Bd2
{[%clk 01:39:03]} {[%emt 00:02:32]} f5 {[%clk 00:50:06]} {[%emt 00:15:36]} 19.
Qg3 {[%clk 01:36:30]} {[%emt 00:03:03]} Rf6 {[%clk 00:45:06]} {[%emt 00:05:30]}
20. Rf3 {[%clk 01:36:54]} {[%emt 00:00:06]} Rg6 {[%clk 00:43:23]} {[%emt
00:02:13]} 21. Qf2 {[%clk 01:36:37]} {[%emt 00:00:47]} b6 {[%clk 00:43:09]}
{[%emt 00:00:44]} 22. c4 {[%clk 01:36:33]} {[%emt 00:00:33]} Qc6 {[%clk
00:43:26]} {[%emt 00:00:13]} 23. b3 {[%clk 01:36:11]} {[%emt 00:00:53]} b5
{[%clk 00:35:12]} {[%emt 00:08:43]} 24. Rc1 {[%clk 01:28:54]} {[%emt 00:07:47]}
Bb7 {[%clk 00:32:28]} {[%emt 00:03:14]} 25. d4 {[%clk 01:28:16]} {[%emt
00:01:08]} Qa6 {[%clk 00:26:55]} {[%emt 00:06:03]} 26. d5 {[%clk 01:28:41]}
{[%emt 00:00:06]} Ba3 {[%clk 00:23:08]} {[%emt 00:04:17]} 27. Rc2 {[%clk
01:24:41]} {[%emt 00:04:29]} bxc4 {[%clk 00:18:01]} {[%emt 00:05:37]} 28. bxc4
{[%clk 01:24:59]} {[%emt 00:00:12]} Qa4 {[%clk 00:18:01]} {[%emt 00:00:30]} 29.
Be3 {[%clk 01:20:55]} {[%emt 00:04:33]} Ne8 {[%clk 00:16:06]} {[%emt 00:02:26]}
30. Qe2 {[%clk 01:14:55]} {[%emt 00:06:30]} Nf6 {[%clk 00:16:27]} {[%emt
00:00:09]} 31. Bf2 {[%clk 01:14:56]} {[%emt 00:00:29]} Ne4 {[%clk 00:16:30]}
{[%emt 00:00:28]} 32. Rb3 {[%clk 01:15:02]} {[%emt 00:00:24]} Qa6 {[%clk
00:13:39]} {[%emt 00:03:21]} 33. Be1 {[%clk 01:07:02]} {[%emt 00:08:29]} Bc5
{[%clk 00:13:35]} {[%emt 00:00:34]} 34. Rb5 {[%clk 01:05:59]} {[%emt 00:01:33]}
h6 {[%clk 00:12:46]} {[%emt 00:01:19]} 35. Qd3 {[%clk 00:57:32]} {[%emt
00:08:57]} Rb6 {[%clk 00:10:21]} {[%emt 00:02:55]} 36. Rb3 {[%clk 00:54:54]}
{[%emt 00:03:08]} Bc8 {[%clk 00:10:26]} {[%emt 00:00:26]} 37. Re2 {[%clk
00:54:57]} {[%emt 00:00:27]} Bd7 {[%clk 00:09:30]} {[%emt 00:01:25]} 38. Kh2
{[%clk 00:54:01]} {[%emt 00:01:25]} Qc8 {[%clk 00:08:34]} {[%emt 00:01:26]} 39.
Bc3 {[%clk 00:53:28]} {[%emt 00:01:04]} Ba4 {[%clk 00:06:11]} {[%emt 00:02:53]}
40. Rbb2 {[%clk 00:52:20]} {[%emt 00:01:38]} Be8 {[%clk 00:02:36]} {[%emt
00:04:05]} 41. Be5 {[%clk 00:52:15]} {[%emt 00:00:36]} Bd7 {[%clk 00:00:54]}
{[%emt 00:02:11]} 42. Rb3 {[%clk 00:52:34]} {[%emt 00:00:11]} Ba4 {[%clk
00:29:50]} {[%emt 00:01:34]} 43. Rbb2 {[%clk 01:21:58]} {[%emt 00:01:07]} Bd7
{[%clk 00:30:06]} {[%emt 00:00:14]} 44. Qf3 {[%clk 01:16:39]} {[%emt 00:05:48]}
Qa6 {[%clk 00:28:27]} {[%emt 00:02:08]} 45. Qd3 {[%clk 01:13:28]} {[%emt
00:03:41]} Qa3 {[%clk 00:24:44]} {[%emt 00:04:14]} 46. Qxa3 {[%clk 01:11:02]}
{[%emt 00:02:56]} Bxa3 {[%clk 00:25:10]} {[%emt 00:00:04]} 47. Rb3 {[%clk
01:11:25]} {[%emt 00:00:07]} Bc5 {[%clk 00:25:13]} {[%emt 00:00:27]} 48. Bc7
{[%clk 01:04:23]} {[%emt 00:07:33]} Rb4 {[%clk 00:24:51]} {[%emt 00:00:52]} 49.
Rxb4 {[%clk 01:03:00]} {[%emt 00:01:53]} Bxb4 {[%clk 00:25:20]} {[%emt
00:00:01]} 50. Rb2 {[%clk 01:03:12]} {[%emt 00:00:18]} a5 {[%clk 00:24:18]}
{[%emt 00:01:32]} 51. Be5 {[%clk 01:02:49]} {[%emt 00:00:52]} Nc5 {[%clk
00:21:37]} {[%emt 00:03:10]} 52. Bc7 {[%clk 00:54:01]} {[%emt 00:09:20]} Ne4
{[%clk 00:18:21]} {[%emt 00:03:46]} 53. Rc2 {[%clk 00:44:09]} {[%emt 00:10:22]}
a4 {[%clk 00:16:29]} {[%emt 00:02:23]} 54. Rb2 {[%clk 00:44:11]} {[%emt
00:00:27]} Bc5 {[%clk 00:15:53]} {[%emt 00:01:06]} 55. Rb7 {[%clk 00:41:43]}
{[%emt 00:02:58]} Be8 {[%clk 00:11:38]} {[%emt 00:04:46]} 56. Rb8 {[%clk
00:41:02]} {[%emt 00:01:10]} Kf7 {[%clk 00:11:59]} {[%emt 00:00:09]} 57. Be5
{[%clk 00:41:27]} {[%emt 00:00:05]} Nd6 {[%clk 00:12:07]} {[%emt 00:00:21]} 58.
g3 {[%clk 00:39:06]} {[%emt 00:02:52]} g6 {[%clk 00:10:28]} {[%emt 00:02:09]}
59. Bxd6 {[%clk 00:34:50]} {[%emt 00:04:46]} Bxd6 {[%clk 00:10:54]} {[%emt
00:00:05]} 60. Ra8 {[%clk 00:35:13]} {[%emt 00:00:06]} a3 {[%clk 00:09:01]}
{[%emt 00:02:23]} 61. Ra5 {[%clk 00:35:37]} {[%emt 00:00:06]} Bb4 {[%clk
00:09:06]} {[%emt 00:00:25]} 62. Ra7+ {[%clk 00:34:22]} {[%emt 00:01:46]} Kf6
{[%clk 00:08:53]} {[%emt 00:00:42]} 63. Kg2 {[%clk 00:34:47]} {[%emt 00:00:05]}
Bc5 {[%clk 00:07:42]} {[%emt 00:01:40]} 64. Ra8 {[%clk 00:34:36]} {[%emt
00:00:42]} Ke7 {[%clk 00:07:20]} {[%emt 00:00:51]} 65. Kf3 {[%clk 00:34:55]}
{[%emt 00:00:12]} g5 {[%clk 00:05:49]} {[%emt 00:02:02]} 66. Ke2 {[%clk
00:34:23]} {[%emt 00:01:01]} gxf4 {[%clk 00:05:46]} {[%emt 00:00:33]} 67. gxf4
{[%clk 00:34:49]} {[%emt 00:00:04]} Bh5+ {[%clk 00:04:52]} {[%emt 00:01:25]} 68.
Kd3 {[%clk 00:35:10]} {[%emt 00:00:08]} Bf3 {[%clk 00:04:47]} {[%emt 00:00:35]}
69. Ra5 {[%clk 00:33:36]} {[%emt 00:02:04]} Be4+ {[%clk 00:05:10]} {[%emt
00:00:08]} 70. Kc3 {[%clk 00:33:51]} {[%emt 00:00:14]} Be3 {[%clk 00:05:29]}
{[%emt 00:00:11]} 71. Rxa3 {[%clk 00:33:43]} {[%emt 00:00:39]} Bxf4 {[%clk
00:05:54]} {[%emt 00:00:05]} 72. Kd4 {[%clk 00:33:47]} {[%emt 00:00:24]} Bh2
{[%clk 00:05:17]} {[%emt 00:01:08]} 73. Ra7+ {[%clk 00:32:44]} {[%emt
00:01:33]} Kf6 {[%clk 00:05:11]} {[%emt 00:00:35]} 74. Ra6+ {[%clk 00:33:08]}
{[%emt 00:00:07]} Ke7 {[%clk 00:04:56]} {[%emt 00:00:45]} 75. Re6+ {[%clk
00:33:02]} {[%emt 00:00:35]} Kd7 {[%clk 00:05:12]} {[%emt 00:00:14]} 76. c5
{[%clk 00:32:08]} {[%emt 00:01:25]} Bg1+ {[%clk 00:05:40]} {[%emt 00:00:02]} 77.
Kc4 {[%clk 00:32:30]} {[%emt 00:00:08]} Bb1 {[%clk 00:05:20]} {[%emt 00:00:50]}
78. c6+ {[%clk 00:32:00]} {[%emt 00:00:59]} Kc7 {[%clk 00:05:09]} {[%emt
00:00:41]} 79. Re7+ {[%clk 00:31:57]} {[%emt 00:00:32]} Kc8 {[%clk 00:04:34]}
{[%emt 00:01:06]} 80. d6 {[%clk 00:31:11]} {[%emt 00:01:16]} Bxa2+ {[%clk
00:03:25]} {[%emt 00:01:39]} 81. Kc3 {[%clk 00:29:22]} {[%emt 00:02:19]} Kb8
{[%clk 00:03:30]} {[%emt 00:00:25]} 82. Rb7+ {[%clk 00:29:36]} {[%emt
00:00:16]} 1-0

[Event "Masters Tournament (MTO)"]
[Site "Biel, Switzerland"]
[Date "2026.07.17"]
[Round "5.31"]
[White "Erne, Raphael"]
[Black "Wiesmann, Dominique"]
[Result "1-0"]
[TimeControl "100+30+30sec/move"]
[WhiteTitle "-"]
[BlackTitle "-"]
[WhiteFideId "1341928"]
[BlackFideId "1308262"]
[WhiteElo "2166"]
[BlackElo "1978"]

1. c4 {[%clk 01:40:52]} {[%emt 00:00:08]} e5 {[%clk 01:40:42]} {[%emt
00:00:19]} 2. g3 {[%clk 01:41:11]} {[%emt 00:00:12]} Nf6 {[%clk 01:40:56]}
{[%emt 00:00:15]} 3. Bg2 {[%clk 01:41:27]} {[%emt 00:00:14]} c6 {[%clk
01:41:02]} {[%emt 00:00:24]} 4. Nf3 {[%clk 01:41:42]} {[%emt 00:00:16]} e4
{[%clk 01:41:14]} {[%emt 00:00:19]} 5. Nd4 {[%clk 01:41:58]} {[%emt 00:00:15]}
Qb6 {[%clk 01:41:22]} {[%emt 00:00:22]} 6. Nb3 {[%clk 01:42:04]} {[%emt
00:00:23]} a5 {[%clk 01:41:37]} {[%emt 00:00:15]} 7. d3 {[%clk 01:42:14]}
{[%emt 00:00:21]} a4 {[%clk 01:40:48]} {[%emt 00:01:18]} 8. N3d2 {[%clk
01:42:35]} {[%emt 00:00:11]} Bc5 {[%clk 01:40:58]} {[%emt 00:00:18]} 9. O-O
{[%clk 01:42:47]} {[%emt 00:00:18]} e3 {[%clk 01:41:12]} {[%emt 00:00:16]} 10.
fxe3 {[%clk 01:42:46]} {[%emt 00:00:31]} Bxe3+ {[%clk 01:41:22]} {[%emt
00:00:19]} 11. Kh1 {[%clk 01:43:09]} {[%emt 00:00:08]} Ng4 {[%clk 01:41:29]}
{[%emt 00:00:23]} 12. Ne4 {[%clk 01:43:20]} {[%emt 00:00:19]} O-O {[%clk
01:41:40]} {[%emt 00:00:19]} 13. Nbc3 {[%clk 01:43:29]} {[%emt 00:00:21]} d5
{[%clk 01:41:34]} {[%emt 00:00:36]} 14. cxd5 {[%clk 01:43:29]} {[%emt
00:00:30]} Ra5 {[%clk 01:41:52]} {[%emt 00:00:12]} 15. Nd6 {[%clk 01:30:18]}
{[%emt 00:13:40]} Bxc1 {[%clk 01:41:44]} {[%emt 00:00:38]} 16. Qxc1 {[%clk
01:30:05]} {[%emt 00:00:44]} Nf2+ {[%clk 01:42:05]} {[%emt 00:00:09]} 17. Rxf2
{[%clk 01:30:28]} {[%emt 00:00:08]} Qxf2 {[%clk 01:42:28]} {[%emt 00:00:07]} 18.
Nc4 {[%clk 01:26:59]} {[%emt 00:03:59]} Ra6 {[%clk 01:39:28]} {[%emt 00:03:29]}
19. Qd2 {[%clk 01:15:49]} {[%emt 00:11:41]} cxd5 {[%clk 01:32:15]} {[%emt
00:07:43]} 20. Nxd5 {[%clk 01:06:19]} {[%emt 00:09:59]} Rh6 {[%clk 01:24:44]}
{[%emt 00:08:01]} 21. Rf1 {[%clk 01:06:10]} {[%emt 00:00:39]} Qc5 {[%clk
01:24:11]} {[%emt 00:01:04]} 22. Qg5 {[%clk 00:57:42]} {[%emt 00:08:58]} f6
{[%clk 01:19:41]} {[%emt 00:05:01]} 23. Nxf6+ {[%clk 00:55:22]} {[%emt
00:02:50]} Rhxf6 {[%clk 01:19:55]} {[%emt 00:00:15]} 24. Qxc5 {[%clk 00:55:47]}
{[%emt 00:00:05]} Rxf1+ {[%clk 01:20:15]} {[%emt 00:00:10]} 25. Bxf1 {[%clk
00:56:13]} {[%emt 00:00:04]} Rxf1+ {[%clk 01:20:33]} {[%emt 00:00:12]} 26. Kg2
{[%clk 00:56:38]} {[%emt 00:00:05]} Rf8 {[%clk 01:20:54]} {[%emt 00:00:10]} 27.
Qd5+ {[%clk 00:55:50]} {[%emt 00:01:17]} Kh8 {[%clk 01:20:57]} {[%emt
00:00:27]} 28. Nd6 {[%clk 00:54:52]} {[%emt 00:01:28]} 1-0

[Event "Masters Tournament (MTO)"]
[Site "Biel, Switzerland"]
[Date "2026.07.17"]
[Round "5.32"]
[White "Monteverde, Jonathan"]
[Black "Yang, Sung-Jui"]
[Result "0-1"]
[TimeControl "100+30+30sec/move"]
[WhiteTitle "-"]
[BlackTitle "-"]
[WhiteFideId "1314580"]
[BlackFideId "16301048"]
[WhiteElo "2098"]
[BlackElo "1935"]

1. d4 {[%clk 01:40:58]} {[%emt 00:00:01]} d5 {[%clk 01:32:40]} {[%emt
00:08:21]} 2. c4 {[%clk 01:41:21]} {[%emt 00:00:06]} e6 {[%clk 01:32:57]}
{[%emt 00:00:13]} 3. Nc3 {[%clk 01:41:46]} {[%emt 00:00:05]} Nf6 {[%clk
01:33:15]} {[%emt 00:00:12]} 4. cxd5 {[%clk 01:42:12]} {[%emt 00:00:04]} exd5
{[%clk 01:33:36]} {[%emt 00:00:09]} 5. Bg5 {[%clk 01:42:38]} {[%emt 00:00:04]}
c6 {[%clk 01:33:25]} {[%emt 00:00:41]} 6. e3 {[%clk 01:43:01]} {[%emt
00:00:07]} h6 {[%clk 01:32:43]} {[%emt 00:01:12]} 7. Bh4 {[%clk 01:43:19]}
{[%emt 00:00:12]} Be7 {[%clk 01:32:33]} {[%emt 00:00:40]} 8. Bd3 {[%clk
01:43:36]} {[%emt 00:00:13]} O-O {[%clk 01:32:46]} {[%emt 00:00:18]} 9. Nge2
{[%clk 01:43:47]} {[%emt 00:00:19]} Re8 {[%clk 01:32:50]} {[%emt 00:00:25]} 10.
O-O {[%clk 01:43:56]} {[%emt 00:00:21]} a5 {[%clk 01:33:04]} {[%emt 00:00:16]}
11. f3 {[%clk 01:38:03]} {[%emt 00:06:23]} b5 {[%clk 01:30:18]} {[%emt
00:03:16]} 12. Bf2 {[%clk 01:36:25]} {[%emt 00:02:08]} Nbd7 {[%clk 01:30:09]}
{[%emt 00:00:39]} 13. Qc2 {[%clk 01:31:26]} {[%emt 00:05:28]} Ba6 {[%clk
01:28:57]} {[%emt 00:01:43]} 14. Kh1 {[%clk 01:10:20]} {[%emt 00:21:35]} Qb6
{[%clk 01:22:27]} {[%emt 00:07:00]} 15. e4 {[%clk 01:04:42]} {[%emt 00:06:09]}
b4 {[%clk 01:22:01]} {[%emt 00:00:57]} 16. Na4 {[%clk 01:02:31]} {[%emt
00:02:41]} Bxd3 {[%clk 01:21:19]} {[%emt 00:01:12]} 17. Qxd3 {[%clk 01:02:38]}
{[%emt 00:00:22]} Qb5 {[%clk 00:57:53]} {[%emt 00:23:56]} 18. Qxb5 {[%clk
00:52:38]} {[%emt 00:10:30]} cxb5 {[%clk 00:58:10]} {[%emt 00:00:13]} 19. Nc5
{[%clk 00:53:01]} {[%emt 00:00:07]} Nxc5 {[%clk 00:57:21]} {[%emt 00:01:20]} 20.
dxc5 {[%clk 00:53:26]} {[%emt 00:00:04]} dxe4 {[%clk 00:57:29]} {[%emt
00:00:22]} 21. Rfe1 {[%clk 00:53:42]} {[%emt 00:00:13]} Rac8 {[%clk 00:44:10]}
{[%emt 00:13:50]} 22. Rac1 {[%clk 00:52:54]} {[%emt 00:01:19]} Nd7 {[%clk
00:43:11]} {[%emt 00:01:28]} 0-1

[Event "Masters Tournament (MTO)"]
[Site "Biel, Switzerland"]
[Date "2026.07.17"]
[Round "5.33"]
[White "Bucher, Dominic"]
[Black "Scherler, Julius"]
[Result "0-1"]
[TimeControl "100+30+30sec/move"]
[WhiteTitle "-"]
[BlackTitle "-"]
[WhiteFideId "1353144"]
[BlackFideId "1337947"]
[WhiteElo "2078"]
[BlackElo "1941"]

1. e4 {[%clk 01:40:56]} {[%emt 00:00:02]} c6 {[%clk 01:40:34]} {[%emt
00:00:28]} 2. d4 {[%clk 01:41:17]} {[%emt 00:00:08]} d5 {[%clk 01:40:40]}
{[%emt 00:00:23]} 3. e5 {[%clk 01:41:39]} {[%emt 00:00:09]} Bf5 {[%clk
01:40:50]} {[%emt 00:00:20]} 4. g4 {[%clk 01:41:56]} {[%emt 00:00:13]} Bg6
{[%clk 01:36:11]} {[%emt 00:05:08]} 5. e6 {[%clk 01:42:11]} {[%emt 00:00:16]}
Qd6 {[%clk 01:33:17]} {[%emt 00:03:24]} 6. exf7+ {[%clk 01:42:25]} {[%emt
00:00:16]} Bxf7 {[%clk 01:33:45]} {[%emt 00:00:03]} 7. Nf3 {[%clk 01:42:37]}
{[%emt 00:00:17]} Nd7 {[%clk 01:32:57]} {[%emt 00:01:18]} 8. Qe2 {[%clk
01:42:45]} {[%emt 00:00:22]} Ngf6 {[%clk 01:24:20]} {[%emt 00:09:07]} 9. Ne5
{[%clk 01:35:12]} {[%emt 00:08:03]} Nxe5 {[%clk 01:19:40]} {[%emt 00:05:09]} 10.
dxe5 {[%clk 01:34:43]} {[%emt 00:00:59]} Qb4+ {[%clk 01:20:03]} {[%emt
00:00:08]} 11. c3 {[%clk 01:28:05]} {[%emt 00:07:08]} Qe4 {[%clk 01:20:13]}
{[%emt 00:00:19]} 12. exf6 {[%clk 01:06:10]} {[%emt 00:22:26]} Qxh1 {[%clk
01:19:38]} {[%emt 00:01:04]} 13. f3 {[%clk 01:06:29]} {[%emt 00:00:12]} O-O-O
{[%clk 01:00:29]} {[%emt 00:19:39]} 14. Be3 {[%clk 00:25:38]} {[%emt 00:41:20]}
exf6 {[%clk 00:59:40]} {[%emt 00:01:19]} 15. Nd2 {[%clk 00:25:05]} {[%emt
00:01:03]} Re8 {[%clk 00:55:51]} {[%emt 00:04:20]} 16. Nb3 {[%clk 00:21:42]}
{[%emt 00:03:53]} Bd6 {[%clk 00:54:28]} {[%emt 00:01:53]} 17. O-O-O {[%clk
00:17:20]} {[%emt 00:04:52]} Qxh2 {[%clk 00:51:24]} {[%emt 00:03:34]} 18. Qxh2
{[%clk 00:17:41]} {[%emt 00:00:09]} Bxh2 {[%clk 00:51:52]} {[%emt 00:00:01]} 19.
Bxa7 {[%clk 00:17:57]} {[%emt 00:00:15]} Bg6 {[%clk 00:49:59]} {[%emt
00:02:22]} 20. Bb6 {[%clk 00:17:16]} {[%emt 00:01:11]} Bf4+ {[%clk 00:48:20]}
{[%emt 00:02:09]} 21. Nd2 {[%clk 00:17:45]} {[%emt 00:00:02]} h5 {[%clk
00:46:37]} {[%emt 00:02:12]} 22. b3 {[%clk 00:16:58]} {[%emt 00:01:18]} hxg4
{[%clk 00:45:47]} {[%emt 00:01:19]} 23. fxg4 {[%clk 00:17:19]} {[%emt
00:00:09]} Rh2 {[%clk 00:45:59]} {[%emt 00:00:18]} 0-1

[Event "Masters Tournament (MTO)"]
[Site "Biel, Switzerland"]
[Date "2026.07.17"]
[Round "5.34"]
[White "Aryan, Mehta"]
[Black "Gerrits, Augustin"]
[Result "1/2-1/2"]
[TimeControl "100+30+30sec/move"]
[WhiteTitle "-"]
[BlackTitle "-"]
[WhiteFideId "33329664"]
[BlackFideId "285358"]
[WhiteElo "1979"]
[BlackElo "2072"]

1. e4 {[%clk 01:40:51]} {[%emt 00:00:08]} e5 {[%clk 01:40:26]} {[%emt
00:00:34]} 2. Nf3 {[%clk 01:41:15]} {[%emt 00:00:06]} Nc6 {[%clk 01:40:31]}
{[%emt 00:00:26]} 3. Bb5 {[%clk 01:41:38]} {[%emt 00:00:07]} a6 {[%clk
01:40:27]} {[%emt 00:00:34]} 4. Ba4 {[%clk 01:42:01]} {[%emt 00:00:06]} Nf6
{[%clk 01:40:31]} {[%emt 00:00:27]} 5. O-O {[%clk 01:42:22]} {[%emt 00:00:09]}
Be7 {[%clk 01:40:51]} {[%emt 00:00:10]} 6. Re1 {[%clk 01:42:44]} {[%emt
00:00:08]} b5 {[%clk 01:40:58]} {[%emt 00:00:25]} 7. Bb3 {[%clk 01:43:10]}
{[%emt 00:00:02]} d6 {[%clk 01:40:59]} {[%emt 00:00:30]} 8. c3 {[%clk
01:43:27]} {[%emt 00:00:13]} O-O {[%clk 01:40:52]} {[%emt 00:00:36]} 9. h3
{[%clk 01:43:47]} {[%emt 00:00:09]} Nb8 {[%clk 01:40:38]} {[%emt 00:00:45]} 10.
d4 {[%clk 01:44:10]} {[%emt 00:00:07]} Nbd7 {[%clk 01:40:43]} {[%emt 00:00:25]}
11. c4 {[%clk 01:44:25]} {[%emt 00:00:16]} c6 {[%clk 01:40:37]} {[%emt
00:00:36]} 12. Qc2 {[%clk 01:44:46]} {[%emt 00:00:09]} Bb7 {[%clk 01:39:37]}
{[%emt 00:01:30]} 13. a3 {[%clk 01:44:58]} {[%emt 00:00:18]} bxc4 {[%clk
01:35:46]} {[%emt 00:04:20]} 14. Bxc4 {[%clk 01:45:08]} {[%emt 00:00:21]} exd4
{[%clk 01:33:41]} {[%emt 00:02:34]} 15. Nxd4 {[%clk 01:45:30]} {[%emt
00:00:08]} d5 {[%clk 01:33:49]} {[%emt 00:00:23]} 16. exd5 {[%clk 01:45:51]}
{[%emt 00:00:09]} cxd5 {[%clk 01:34:10]} {[%emt 00:00:09]} 17. Bd3 {[%clk
01:37:33]} {[%emt 00:08:44]} Rc8 {[%clk 01:31:33]} {[%emt 00:03:11]} 18. Nc3
{[%clk 01:37:53]} {[%emt 00:00:08]} Ne4 {[%clk 01:27:12]} {[%emt 00:04:53]} 19.
Nf5 {[%clk 01:30:40]} {[%emt 00:07:43]} Bc5 {[%clk 01:12:16]} {[%emt 00:15:26]}
20. Be3 {[%clk 01:04:17]} {[%emt 00:26:52]} Qf6 {[%clk 01:03:18]} {[%emt
00:09:28]} 21. Bxe4 {[%clk 01:02:21]} {[%emt 00:02:24]} dxe4 {[%clk 01:02:58]}
{[%emt 00:00:51]} 22. Ng3 {[%clk 01:00:52]} {[%emt 00:01:59]} Rfe8 {[%clk
00:55:52]} {[%emt 00:07:37]} 23. Rad1 {[%clk 00:32:39]} {[%emt 00:28:43]} Qc6
{[%clk 00:33:13]} {[%emt 00:23:08]} 24. Nf5 {[%clk 00:26:34]} {[%emt 00:06:36]}
Bf8 {[%clk 00:28:06]} {[%emt 00:05:37]} 25. Rd2 {[%clk 00:17:53]} {[%emt
00:09:11]} Ne5 {[%clk 00:26:25]} {[%emt 00:02:11]} 26. Bd4 {[%clk 00:14:27]}
{[%emt 00:03:56]} Qg6 {[%clk 00:22:49]} {[%emt 00:04:05]} 27. Ng3 {[%clk
00:13:10]} {[%emt 00:01:48]} Bd6 {[%clk 00:20:09]} {[%emt 00:03:11]} 28. Bxe5
{[%clk 00:04:26]} {[%emt 00:09:13]} Bxe5 {[%clk 00:20:32]} {[%emt 00:00:08]} 29.
Nf1 {[%clk 00:03:39]} {[%emt 00:01:17]} f5 {[%clk 00:15:48]} {[%emt 00:05:14]}
30. Qb3+ {[%clk 00:03:01]} {[%emt 00:01:08]} Qf7 {[%clk 00:16:09]} {[%emt
00:00:08]} 31. Qxf7+ {[%clk 00:03:01]} {[%emt 00:00:30]} Kxf7 {[%clk 00:16:35]}
{[%emt 00:00:05]} 32. Ne3 {[%clk 00:01:31]} {[%emt 00:02:00]} g6 {[%clk
00:11:23]} {[%emt 00:05:41]} 33. Na4 {[%clk 00:01:23]} {[%emt 00:00:39]} Red8
{[%clk 00:09:47]} {[%emt 00:02:06]} 34. Rxd8 {[%clk 00:00:34]} {[%emt
00:01:19]} Rxd8 {[%clk 00:10:13]} {[%emt 00:00:04]} 35. Nc4 {[%clk 00:00:40]}
{[%emt 00:00:24]} Bd4 {[%clk 00:08:56]} {[%emt 00:01:46]} 36. b4 {[%clk
00:00:49]} {[%emt 00:00:22]} Ke6 {[%clk 00:08:14]} {[%emt 00:01:11]} 37. Nc5+
{[%clk 00:00:48]} {[%emt 00:00:32]} Bxc5 {[%clk 00:08:37]} {[%emt 00:00:08]} 38.
bxc5 {[%clk 00:01:17]} Rd4 {[%clk 00:01:36]} {[%emt 00:07:31]} 39. Na5 {[%clk
00:00:34]} {[%emt 00:01:13]} Bd5 {[%clk 00:01:35]} {[%emt 00:00:30]} 40. Rb1
{[%clk 00:00:41]} {[%emt 00:00:23]} Ke5 {[%clk 00:00:33]} {[%emt 00:01:32]} 41.
c6 {[%clk 00:23:12]} {[%emt 00:07:59]} Kd6 {[%clk 00:28:48]} {[%emt 00:02:16]}
42. Rb7 {[%clk 00:13:01]} {[%emt 00:10:40]} Bxc6 {[%clk 00:22:37]} {[%emt
00:06:41]} 1/2-1/2